fUST/lending_fUST_20260106
["ID","MTS","AMOUNT","RATE_DAILY","PERIOD"]
[400487560,1767658157425,227.51,9.201e-05,2]
[400487561,1767658167109,1874.04653939,0.0003,120]
[400487562,1767658194916,1207.39500778,0.0003,120]
[400487564,1767658206815,-278.0,9.299e-05,2]
[400487565,1767658206842,-58.65720266,9.299e-05,2]
[400487566,1767658208287,-241.34279734,9.299e-05,2]
[400487567,1767658208310,-258.65720266,9.299e-05,2]
[400487569,1767658230177,155.43,8.708e-05,2]
[400487570,1767658230604,207.25,9.087e-05,2]
[400487582,1767658232659,-41.34279734,9.299e-05,2]
[400487583,1767658232670,-344.46576473,9.299e-05,2]
[400487584,1767658232681,-205.53423527,9.299e-05,2]
[400487586,1767658232690,-300.0,9.299e-05,2]
[400487588,1767658232700,-825.68196216,9.299e-05,2]
[400487591,1767658232711,-374.31803784,9.299e-05,2]
[400487595,1767658232720,-56.1197186,9.3e-05,2]
[400487598,1767658232730,-500.0,9.3e-05,2]
[400487601,1767658232739,-500.0,9.3e-05,2]
[400487604,1767658232748,-500.0,9.3e-05,2]
[400487607,1767658232758,-500.0,9.3e-05,2]
[400487610,1767658232768,-500.0,9.3e-05,2]
[400487612,1767658232778,-500.0,9.3e-05,2]
[400487614,1767658232788,-500.0,9.3e-05,2]
[400487615,1767658232798,-500.0,9.3e-05,2]
[400487616,1767658232807,-500.0,9.3e-05,2]
[400487617,1767658232816,-500.0,9.3e-05,2]
[400487618,1767658232826,-713.27,9.3e-05,2]
[400487619,1767658232835,-259.06,9.465e-05,2]
[400487620,1767658232844,-300.0,9.485e-05,2]
[400487621,1767658232853,-300.0,9.485e-05,2]
[400487622,1767658232862,-300.0,9.485e-05,2]
[400487623,1767658232871,-300.0,9.485e-05,2]
[400487624,1767658232881,-300.0,9.485e-05,2]
[400487625,1767658232890,-300.0,9.485e-05,2]
[400487626,1767658232899,-300.0,9.485e-05,2]
[400487627,1767658232908,-300.0,9.485e-05,2]
[400487628,1767658232917,-300.0,9.485e-05,2]
[400487629,1767658232927,-300.0,9.485e-05,2]
[400487630,1767658232936,-300.0,9.485e-05,2]
[400487631,1767658232945,-300.0,9.485e-05,2]
[400487632,1767658232954,-300.0,9.485e-05,2]
[400487633,1767658232963,-300.0,9.485e-05,2]
[400487634,1767658232972,-300.0,9.485e-05,2]
[400487635,1767658232981,-600.0,9.485e-05,2]
[400487636,1767658232991,-1159.07619761,9.604e-05,2]
[400487637,1767658232999,-713.27,9.7e-05,2]
[400487638,1767658233009,-310.87,9.844e-05,2]
[400487639,1767658233019,-210.35,0.0001,2]
[400487640,1767658233028,-713.27,0.000101,2]
[400487642,1767658233037,-210.35,0.000102,2]
[400487644,1767658233047,-362.68,0.00010222,2]
[400487646,1767658233058,-420.0,0.00010229,2]
[400487648,1767658233067,-1680.0,0.00010229,2]
[400487649,1767658233077,-210.35,0.000104,2]
[400487650,1767658233087,-720.0,0.00010433,2]
[400487651,1767658233097,-372.51398962,0.00010477,2]
[400487652,1767658233107,-1490.05595846,0.00010477,2]
[400487653,1767658233116,-3349.27328063,0.00010477,2]
[400487654,1767658233125,-387.89836606,0.00010477,2]
[400487655,1767658233135,-1551.59346423,0.00010477,2]
[400487656,1767658233144,-3491.08529452,0.00010477,2]
[400487657,1767658233154,-6206.37385692,0.00010477,2]
[400487658,1767658233163,-1414.82674829,0.000105,2]
[400487659,1767658233173,-500.0,0.000105,2]
[400487660,1767658233182,-218.28157507,0.00010574,2]
[400487661,1767658233191,-500.0,0.00010574,2]
[400487662,1767658233201,-500.0,0.00010574,2]
[400487663,1767658233210,-500.0,0.00010574,2]
[400487664,1767658233219,-500.0,0.00010574,2]
[400487665,1767658233228,-500.0,0.00010574,2]
[400487666,1767658233238,-500.0,0.00010574,2]
[400487668,1767658233247,-500.0,0.00010574,2]
[400487669,1767658233256,-500.0,0.00010574,2]
[400487671,1767658233266,-500.0,0.00010574,2]
[400487673,1767658233275,-500.0,0.00010574,2]
[400487675,1767658233284,-500.0,0.00010574,2]
[400487676,1767658233293,-500.0,0.00010574,2]
[400487677,1767658233303,-500.0,0.00010574,2]
[400487678,1767658233312,-190.69059049,0.00010574,2]
[400487679,1767658233321,-500.0,0.00010574,2]
[400487680,1767658233331,-500.0,0.00010574,2]
[400487681,1767658233340,-500.0,0.00010574,2]
[400487682,1767658233349,-500.0,0.00010574,2]
[400487683,1767658233360,-203369.16555294,0.00010575,2]
[400487719,1767658238793,-5412.94095532,0.00010575,2]
[400487721,1767658238805,-791217.89349174,0.00010575,2]
[400487723,1767658238815,-210.35,0.000106,2]
[400487725,1767658238824,-713.27,0.000106,2]
[400487727,1767658238832,-414.49,0.00010601,2]
[400487729,1767658238842,-1091.85681796,0.00010675,2]
[400487731,1767658238851,-151.0,0.00010675,2]
[400487733,1767658238860,-500.0,0.00010675,2]
[400487735,1767658238869,-500.0,0.00010675,2]
[400487737,1767658238879,-500.0,0.00010675,2]
[400487739,1767658238888,-500.0,0.00010675,2]
[400487741,1767658238897,-285.57793267,0.00010675,2]
[400487743,1767658238906,-500.0,0.00010675,2]
[400487744,1767658238915,-500.0,0.00010675,2]
[400487746,1767658238925,-30000.0,0.00010675,2]
[400487748,1767658238934,-151.0,0.00010675,2]
[400487750,1767658238943,-151.0,0.00010675,2]
[400487752,1767658238953,-151.0,0.00010675,2]
[400487754,1767658238962,-151.0,0.00010675,2]
[400487756,1767658238971,-151.0,0.00010675,2]
[400487758,1767658238981,-151.0,0.00010675,2]
[400487760,1767658238990,-297.97794429,0.00010675,2]
[400487761,1767658238999,-2230.315306,0.00010675,2]
[400487763,1767658239009,-500.0,0.00010774,2]
[400487765,1767658239019,-210.35,0.000108,2]
[400487767,1767658239028,-2168.15239523,0.00010831,2]
[400487769,1767658239038,-500.0,0.00010959,2]
[400487771,1767658239047,-499.7898632,0.00010959,2]
[400487773,1767658239057,-466.3,0.0001098,2]
[400487775,1767658239067,-210.35,0.00011,2]
[400487777,1767658239077,-500.0,0.00011,2]
[400487779,1767658239086,-713.27,0.00011,2]
[400487781,1767658239095,-500.0,0.00011048,2]
[400487783,1767658239105,-2339.85019536,0.00011182,2]
[400487785,1767658239115,-587.0,0.00011252,2]
[400487787,1767658239124,-2351.0,0.00011252,2]
[400487789,1767658239133,-500.0,0.00011279,2]
[400487791,1767658239142,-354.08545752,0.000113,2]
[400487793,1767658239151,-500.0,0.00011322,2]
[400487795,1767658239161,-229.624496,0.00011324,2]
[400487796,1767658239170,-229.624496,0.00011324,2]
[400487798,1767658239180,-229.624496,0.00011324,2]
[400487800,1767658239189,-229.624496,0.00011324,2]
[400487802,1767658239198,-500.0,0.00011335,2]
[400487804,1767658239207,-500.0,0.00011335,2]
[400487806,1767658239218,-500.0,0.00011335,2]
[400487808,1767658239227,-518.11,0.00011358,2]
[400487810,1767658239237,-39003.5842717,0.00011364,2]
[400487812,1767658239246,-1743.5666026,0.00011364,2]
[400487814,1767658239255,-151.0,0.00011364,2]
[400487816,1767658239265,-151.0,0.00011364,2]
[400487818,1767658239275,-229.624496,0.00011364,2]
[400487820,1767658239286,-229.624496,0.00011364,2]
[400487822,1767658239295,-229.624496,0.00011364,2]
[400487824,1767658239305,-229.624496,0.00011364,2]
[400487826,1767658239314,-713.27,0.000114,2]
[400487827,1767658239323,-404.40283929,0.00011403,2]
[400487829,1767658239332,-500.0,0.00011416,2]
[400487831,1767658239342,-500.0,0.00011472,2]
[400487833,1767658239351,-500.0,0.00011472,2]
[400487835,1767658239360,-500.0,0.00011472,2]
[400487837,1767658239369,-864.0,0.00011477,2]
[400487839,1767658239379,-16678.4739455,0.00011518,2]
[400487841,1767658239388,-500.0,0.00011553,2]
[400487843,1767658239397,-500.0,0.00011582,2]
[400487845,1767658239407,-500.0,0.00011582,2]
[400487847,1767658239420,-468.84525191,0.00011606,2]
[400487849,1767658239429,-223.13083017,0.00011609,2]
[400487851,1767658239439,-500.0,0.00011609,2]
[400487853,1767658239451,-500.0,0.00011609,2]
[400487855,1767658239460,-151.0,0.00011609,2]
[400487857,1767658239469,-151.0,0.00011609,2]
[400487859,1767658239480,-1875.38100763,0.00011688,2]
[400487861,1767658239489,-500.0,0.0001169,2]
[400487863,1767658239499,-167.70919048,0.00011719,2]
[400487865,1767658239509,-256.92792321,0.00011719,2]
[400487867,1767658239518,-500.0,0.00011719,2]
[400487868,1767658239527,-500.0,0.00011719,2]
[400487870,1767658239537,-169.47157129,0.00011719,2]
[400487872,1767658239547,-500.0,0.00011746,2]
[400487874,1767658239556,-500.0,0.00011746,2]
[400487876,1767658239566,-1617.61135714,0.00011769,2]
[400487878,1767658239575,-713.27,0.000118,2]
[400487880,1767658239584,-500.0,0.00011827,2]
[400487882,1767658239593,-201.43282631,0.00011827,2]
[400487884,1767658239602,-192.37511605,0.00011856,2]
[400487886,1767658239611,-500.0,0.00011856,2]
[400487888,1767658239621,-500.0,0.00011883,2]
[400487890,1767658239630,-500.0,0.00011883,2]
[400487892,1767658239639,-155.67731607,0.00011883,2]
[400487894,1767658239649,-376.3220282,0.00011918,2]
[400487896,1767658239658,-500.0,0.00011964,2]
[400487898,1767658239667,-164.22007656,0.00011993,2]
[400487900,1767658239676,-500.0,0.00011993,2]
[400487902,1767658239685,-229.624496,0.00011993,2]
[400487904,1767658239694,-229.624496,0.00011993,2]
[400487906,1767658239703,-229.624496,0.00011993,2]
[400487908,1767658239711,-229.624496,0.00011993,2]
[400487910,1767658239721,-500.0,0.00012,2]
[400487911,1767658239730,-500.0,0.0001202,2]
[400487913,1767658239739,-353.92857875,0.0001202,2]
[400487915,1767658239748,-163.92678941,0.0001202,2]
[400487917,1767658239757,-500.0,0.00012054,2]
[400487919,1767658239766,-500.0,0.00012101,2]
[400487921,1767658239776,-500.0,0.0001213,2]
[400487923,1767658239786,-3639.62555357,0.00012135,2]
[400487925,1767658239795,-500.0,0.00012157,2]
[400487927,1767658239804,-500.0,0.00012238,2]
[400487929,1767658239813,-211.89087781,0.00012267,2]
[400487931,1767658239823,-500.0,0.00012267,2]
[400487933,1767658239832,-500.0,0.00012294,2]
[400487935,1767658239841,-713.27,0.000123,2]
[400487937,1767658239851,-301.04,0.00012329,2]
[400487939,1767658239860,-698.92,0.00012329,2]
[400487941,1767658239870,-582.43,0.00012329,2]
[400487943,1767658239881,-485.36,0.00012329,2]
[400487945,1767658239890,-404.46,0.00012329,2]
[400487947,1767658239899,-337.05,0.00012329,2]
[400487949,1767658239910,-280.88,0.00012329,2]
[400487951,1767658239919,-234.07,0.00012329,2]
[400487953,1767658239928,-195.05,0.00012329,2]
[400487955,1767658239938,-162.55,0.00012329,2]
[400487957,1767658239947,-812.75,0.00012329,2]
[400487959,1767658239956,-416.0,0.00012342,2]
[400487961,1767658239965,-500.0,0.00012375,2]
[400487963,1767658239975,-823.0,0.00012377,2]
[400487965,1767658239985,-3292.0,0.00012377,2]
[400487967,1767658239994,-500.0,0.00012404,2]
[400487969,1767658240003,-500.0,0.00012431,2]
[400487971,1767658240012,-4215.3876599,0.00012449,2]
[400487973,1767658240021,-6463.97498314,0.00012501,2]
[400487975,1767658240031,-500.0,0.00012512,2]
[400487977,1767658240040,-500.0,0.00012541,2]
[400487979,1767658240049,-391.17925611,0.00012568,2]
[400487981,1767658240059,-30238.28670393,0.000126,2]
[400487983,1767658240068,-151.0,0.000126,2]
[400487985,1767658240077,-151.0,0.000126,2]
[400487987,1767658240086,-229.624496,0.000126,2]
[400487989,1767658240095,-229.624496,0.000126,2]
[400487990,1767658240104,-229.624496,0.000126,2]
[400487992,1767658240113,-229.624496,0.000126,2]
[400487993,1767658240122,-1000.0,0.00012625,2]
[400487995,1767658240133,-199.0,0.00012645,2]
[400487997,1767658240141,-500.0,0.00012649,2]
[400487999,1767658240150,-166.861,0.00012659,2]
[400488001,1767658240159,-500.0,0.00012678,2]
[400488003,1767658240167,-713.27,0.000127,2]
[400488005,1767658240178,-199.0,0.00012722,2]
[400488007,1767658240187,-199.0,0.00012767,2]
[400488009,1767658240196,-1365.0,0.00012772,2]
[400488011,1767658240205,-628.0,0.00012772,2]
[400488013,1767658240215,-2145.0,0.00012772,2]
[400488015,1767658240224,-358.41184808,0.00012786,2]
[400488017,1767658240234,-8702.8760049,0.00012833,2]
[400488019,1767658240244,-497749.79905569,0.0001287,2]
[400488021,1767658240253,-7008.45623523,0.000129,2]
[400488022,1767658240262,-3721.4705624,0.00013007,2]
[400488024,1767658240272,-199.0,0.00013015,2]
[400488026,1767658240282,-199.0,0.00013016,2]
[400488028,1767658240295,-199.0,0.00013039,2]
[400488031,1767658240305,-500.0,0.0001307,2]
[400488032,1767658240315,-713.27,0.000131,2]
[400488034,1767658240324,-199.0,0.00013114,2]
[400488035,1767658240334,-600.0,0.0001315,2]
[400488037,1767658240343,-229.624496,0.00013161,2]
[400488038,1767658240352,-229.624496,0.00013161,2]
[400488040,1767658240361,-229.624496,0.00013161,2]
[400488042,1767658240371,-229.624487,0.00013161,2]
[400488044,1767658240380,-1941.8741167,0.00013161,2]
[400488045,1767658240389,-199.0,0.00013207,2]
[400488046,1767658240398,-168.0,0.00013258,2]
[400488047,1767658240408,-500.0,0.00013273,2]
[400488048,1767658240424,-500.0,0.00013273,2]
[400488049,1767658240433,-500.0,0.00013273,2]
[400488050,1767658240443,-500.0,0.00013273,2]
[400488051,1767658240452,-500.0,0.00013273,2]
[400488052,1767658240463,-500.0,0.00013273,2]
[400488053,1767658240472,-500.0,0.00013273,2]
[400488054,1767658240482,-500.0,0.00013273,2]
[400488055,1767658240493,-500.0,0.00013273,2]
[400488056,1767658240502,-500.0,0.00013273,2]
[400488057,1767658240511,-500.0,0.00013273,2]
[400488058,1767658240522,-500.0,0.00013273,2]
[400488059,1767658240532,-500.0,0.00013273,2]
[400488060,1767658240541,-500.0,0.00013273,2]
[400488061,1767658240550,-544.63270575,0.00013273,2]
[400488062,1767658240559,-500.0,0.00013273,2]
[400488063,1767658240570,-340.60756482,0.00013273,2]
[400488064,1767658240579,-381.16221649,0.00013273,2]
[400488065,1767658240588,-500.0,0.00013273,2]
[400488066,1767658240598,-269.7113098,0.00013273,2]
[400488067,1767658240607,-500.0,0.00013273,2]
[400488068,1767658240616,-500.0,0.00013273,2]
[400488069,1767658240626,-500.0,0.00013273,2]
[400488070,1767658240635,-500.0,0.00013273,2]
[400488071,1767658240645,-500.0,0.00013273,2]
[400488072,1767658240655,-405.01578614,0.00013273,2]
[400488073,1767658240664,-500.0,0.00013273,2]
[400488074,1767658240673,-500.0,0.00013273,2]
[400488075,1767658240683,-186.16786472,0.00013273,2]
[400488076,1767658240692,-500.0,0.00013273,2]
[400488077,1767658240702,-500.0,0.00013273,2]
[400488078,1767658240713,-500.0,0.00013273,2]
[400488079,1767658240722,-500.0,0.00013273,2]
[400488081,1767658240732,-500.0,0.00013273,2]
[400488083,1767658240741,-500.0,0.00013273,2]
[400488084,1767658240750,-500.0,0.00013273,2]
[400488085,1767658240759,-500.56050468,0.00013273,2]
[400488086,1767658240770,-500.0,0.00013273,2]
[400488087,1767658240782,-602.47879957,0.00013273,2]
[400488088,1767658240792,-500.0,0.00013273,2]
[400488089,1767658240801,-151.0,0.00013273,2]
[400488090,1767658240811,-285.443604,0.00013273,2]
[400488091,1767658240821,-204.01,0.00013273,2]
[400488092,1767658240832,-600.0,0.00013287,2]
[400488093,1767658240841,-199.0,0.00013292,2]
[400488094,1767658240851,-408.09849342,0.000133,2]
[400488095,1767658240861,-830.3723225,0.0001334,2]
[400488096,1767658240872,-199.0,0.00013361,2]
[400488097,1767658240881,-199.0,0.00013368,2]
[400488098,1767658240893,-199.0,0.00013393,2]
[400488099,1767658240903,-1181.04611263,0.00013424,2]
[400488100,1767658240912,-500.0,0.00013424,2]
[400488101,1767658240921,-600.0,0.00013424,2]
[400488102,1767658240930,-199.0,0.00013465,2]
[400488103,1767658240940,-713.27,0.000135,2]
[400488104,1767658240949,-199.0,0.00013516,2]
[400488105,1767658240958,-1041.66666667,0.00013523,2]
[400488106,1767658240968,-600.0,0.00013561,2]
[400488107,1767658240978,-199.0,0.00013585,2]
[400488108,1767658240988,-168.0,0.00013589,2]
[400488109,1767658240998,-199.0,0.00013589,2]
[400488110,1767658241007,-199.0,0.00013596,2]
[400488111,1767658241018,-10000.0,0.00013599,2]
[400488112,1767658241028,-151.0,0.00013599,2]
[400488113,1767658241038,-255.0,0.00013615,2]
[400488114,1767658241048,-2760.0,0.00013615,2]
[400488115,1767658241058,-300.0,0.00013673,2]
[400488116,1767658241068,-199.0,0.00013676,2]
[400488117,1767658241079,-200.0,0.00013686,2]
[400488118,1767658241089,-500.0,0.00013698,2]
[400488119,1767658241099,-568.43490835,0.00013698,2]
[400488120,1767658241108,-500.0,0.00013698,2]
[400488121,1767658241119,-500.0,0.00013698,2]
[400488122,1767658241130,-500.0,0.00013698,2]
[400488123,1767658241140,-500.0,0.00013698,2]
[400488124,1767658241149,-500.0,0.00013698,2]
[400488125,1767658241158,-500.0,0.00013698,2]
[400488126,1767658241167,-500.0,0.00013698,2]
[400488127,1767658241176,-500.0,0.00013698,2]
[400488128,1767658241185,-500.0,0.00013698,2]
[400488129,1767658241195,-606.67185424,0.00013698,2]
[400488130,1767658241204,-500.0,0.00013698,2]
[400488131,1767658241213,-500.0,0.00013698,2]
[400488132,1767658241223,-500.0,0.00013698,2]
[400488133,1767658241232,-500.0,0.00013698,2]
[400488134,1767658241242,-500.0,0.00013698,2]
[400488135,1767658241251,-500.0,0.00013698,2]
[400488136,1767658241260,-500.0,0.00013698,2]
[400488137,1767658241270,-500.0,0.00013698,2]
[400488138,1767658241279,-500.0,0.00013698,2]
[400488139,1767658241289,-500.0,0.00013698,2]
[400488140,1767658241298,-500.0,0.00013698,2]
[400488141,1767658241308,-500.0,0.00013698,2]
[400488142,1767658241317,-500.0,0.00013698,2]
[400488143,1767658241326,-500.0,0.00013698,2]
[400488144,1767658241335,-500.0,0.00013698,2]
[400488145,1767658241345,-500.0,0.00013698,2]
[400488146,1767658241355,-500.0,0.00013698,2]
[400488147,1767658241365,-500.0,0.00013698,2]
[400488148,1767658241374,-500.0,0.00013698,2]
[400488149,1767658241384,-235.6611212,0.00013698,2]
[400488150,1767658241393,-512.5908505,0.00013698,2]
[400488151,1767658241402,-566.95004907,0.00013698,2]
[400488152,1767658241419,-500.0,0.00013698,2]
[400488153,1767658241429,-500.0,0.00013698,2]
[400488154,1767658241438,-434.45911779,0.00013698,2]
[400488155,1767658241448,-500.0,0.00013698,2]
[400488156,1767658241459,-500.0,0.00013698,2]
[400488157,1767658241468,-500.0,0.00013698,2]
[400488158,1767658241607,-500.0,0.00013698,2]
[400488159,1767658241616,-500.0,0.00013698,2]
[400488160,1767658241626,-500.0,0.00013698,2]
[400488161,1767658241635,-500.0,0.00013698,2]
[400488162,1767658241644,-500.0,0.00013698,2]
[400488163,1767658241653,-500.0,0.00013698,2]
[400488164,1767658241662,-171.4347321,0.00013698,2]
[400488165,1767658241671,-500.0,0.00013698,2]
[400488166,1767658241679,-500.0,0.00013698,2]
[400488167,1767658241688,-500.0,0.00013698,2]
[400488168,1767658241698,-500.0,0.00013698,2]
[400488169,1767658241707,-500.0,0.00013698,2]
[400488170,1767658241715,-561.43659338,0.00013698,2]
[400488171,1767658241724,-1942.5,0.00013698,2]
[400488172,1767658241733,-1942.5,0.00013698,2]
[400488173,1767658241742,-1942.5,0.00013698,2]
[400488174,1767658241751,-1942.5,0.00013698,2]
[400488175,1767658241759,-1942.5,0.00013698,2]
[400488176,1767658241769,-1942.5,0.00013698,2]
[400488177,1767658241778,-1942.5,0.00013698,2]
[400488178,1767658241787,-1942.5,0.00013698,2]
[400488179,1767658241797,-1942.5,0.00013698,2]
[400488180,1767658241806,-1942.5,0.00013698,2]
[400488181,1767658241816,-1942.5,0.00013698,2]
[400488182,1767658241826,-1942.5,0.00013698,2]
[400488183,1767658241835,-1942.5,0.00013698,2]
[400488184,1767658241844,-1942.5,0.00013698,2]
[400488185,1767658241853,-1942.5,0.00013698,2]
[400488186,1767658241862,-1942.5,0.00013698,2]
[400488187,1767658241872,-1942.5,0.00013698,2]
[400488188,1767658241881,-1942.5,0.00013698,2]
[400488189,1767658241891,-1942.5,0.00013698,2]
[400488190,1767658241900,-1942.5,0.00013698,2]
[400488191,1767658241909,-1942.5,0.00013698,2]
[400488192,1767658241919,-1942.5,0.00013698,2]
[400488193,1767658241930,-1942.5,0.00013698,2]
[400488194,1767658241939,-1942.52772787,0.00013698,2]
[400488195,1767658241949,-500.0,0.00013698,2]
[400488196,1767658241958,-500.0,0.00013698,2]
[400488197,1767658241968,-500.0,0.00013698,2]
[400488198,1767658241978,-500.0,0.00013698,2]
[400488199,1767658241987,-500.0,0.00013698,2]
[400488200,1767658241996,-500.0,0.00013698,2]
[400488201,1767658242006,-458.86833984,0.00013698,2]
[400488202,1767658242015,-3265.24,0.00013698,2]
[400488203,1767658242025,-3265.24,0.00013698,2]
[400488204,1767658242034,-3265.24,0.00013698,2]
[400488205,1767658242046,-3265.24,0.00013698,2]
[400488206,1767658242056,-3265.24,0.00013698,2]
[400488207,1767658242065,-3265.24,0.00013698,2]
[400488208,1767658242075,-3265.24,0.00013698,2]
[400488209,1767658242084,-3265.24,0.00013698,2]
[400488210,1767658242094,-3265.24,0.00013698,2]
[400488211,1767658242103,-3265.24,0.00013698,2]
[400488212,1767658242112,-3265.24,0.00013698,2]
[400488213,1767658242121,-566.12,0.00013698,2]
[400488214,1767658242130,-3265.24,0.00013698,2]
[400488215,1767658242139,-566.12,0.00013698,2]
[400488216,1767658242149,-3265.24,0.00013698,2]
[400488217,1767658242158,-566.12,0.00013698,2]
[400488218,1767658242167,-3265.24,0.00013698,2]
[400488219,1767658242176,-566.12,0.00013698,2]
[400488220,1767658242186,-3265.24,0.00013698,2]
[400488221,1767658242196,-566.12,0.00013698,2]
[400488222,1767658242205,-3265.24,0.00013698,2]
[400488223,1767658242214,-566.12,0.00013698,2]
[400488224,1767658242223,-3265.24,0.00013698,2]
[400488225,1767658242234,-566.12,0.00013698,2]
[400488226,1767658242244,-3265.24,0.00013698,2]
[400488227,1767658242254,-566.12,0.00013698,2]
[400488228,1767658242264,-3265.24,0.00013698,2]
[400488229,1767658242273,-566.12,0.00013698,2]
[400488230,1767658242283,-3265.24,0.00013698,2]
[400488231,1767658242292,-566.12,0.00013698,2]
[400488232,1767658242302,-3265.24,0.00013698,2]
[400488233,1767658242311,-566.12,0.00013698,2]
[400488234,1767658242320,-3265.24,0.00013698,2]
[400488235,1767658242330,-566.12,0.00013698,2]
[400488236,1767658242339,-3265.24,0.00013698,2]
[400488237,1767658242348,-566.12,0.00013698,2]
[400488238,1767658242358,-3265.46820115,0.00013698,2]
[400488239,1767658242367,-566.12,0.00013698,2]
[400488240,1767658242377,-566.12,0.00013698,2]
[400488241,1767658242387,-566.12,0.00013698,2]
[400488242,1767658242396,-566.12,0.00013698,2]
[400488243,1767658242406,-566.12,0.00013698,2]
[400488244,1767658242418,-566.12,0.00013698,2]
[400488245,1767658242428,-566.12,0.00013698,2]
[400488246,1767658242438,-566.12,0.00013698,2]
[400488247,1767658242449,-566.12,0.00013698,2]
[400488248,1767658242460,-566.12,0.00013698,2]
[400488249,1767658242469,-566.26288798,0.00013698,2]
[400488250,1767658242481,-24180.8918079,0.00013699,2]
[400488251,1767658242490,-2944.4597867,0.00013699,2]
[400488252,1767658242500,-1000.0,0.00013699,2]
[400488253,1767658242510,-60393.8418292,0.00013699,2]
[400488254,1767658242519,-17365.6898596,0.00013699,2]
[400488255,1767658242529,-1007.182489,0.00013699,2]
[400488256,1767658242539,-156.028602,0.00013699,2]
[400488257,1767658242548,-2611.844685,0.00013699,2]
[400488258,1767658242558,-1146.077124,0.00013699,2]
[400488259,1767658242568,-1146.077124,0.00013699,2]
[400488260,1767658242577,-1146.077124,0.00013699,2]
[400488261,1767658242587,-1146.077124,0.00013699,2]
[400488262,1767658242597,-1146.077124,0.00013699,2]
[400488263,1767658242606,-1146.077124,0.00013699,2]
[400488264,1767658242615,-1146.077124,0.00013699,2]
[400488265,1767658242625,-1146.077124,0.00013699,2]
[400488266,1767658242636,-1146.077124,0.00013699,2]
[400488267,1767658242645,-1146.077124,0.00013699,2]
[400488268,1767658242654,-1146.077124,0.00013699,2]
[400488269,1767658242663,-1146.077124,0.00013699,2]
[400488270,1767658242672,-1146.077124,0.00013699,2]
[400488271,1767658242681,-1146.077124,0.00013699,2]
[400488272,1767658242691,-1146.077124,0.00013699,2]
[400488273,1767658242700,-1146.077124,0.00013699,2]
[400488274,1767658242709,-1146.077124,0.00013699,2]
[400488275,1767658242718,-1146.077124,0.00013699,2]
[400488276,1767658242728,-1146.077124,0.00013699,2]
[400488277,1767658242739,-1146.077124,0.00013699,2]
[400488278,1767658242749,-500.0,0.00013699,2]
[400488279,1767658242759,-500.0,0.00013699,2]
[400488280,1767658242768,-293.74661652,0.00013699,2]
[400488281,1767658242777,-159.85184357,0.00013699,2]
[400488282,1767658242786,-500.0,0.00013699,2]
[400488283,1767658242796,-500.43063686,0.00013699,2]
[400488284,1767658242805,-500.0,0.00013699,2]
[400488285,1767658242814,-159.78426708,0.00013699,2]
[400488286,1767658242824,-500.0,0.00013699,2]
[400488287,1767658242833,-500.0,0.00013699,2]
[400488288,1767658242843,-500.0,0.00013699,2]
[400488289,1767658242852,-501.37466617,0.00013699,2]
[400488290,1767658242861,-500.0,0.00013699,2]
[400488291,1767658242870,-500.0,0.00013699,2]
[400488292,1767658242879,-500.0,0.00013699,2]
[400488293,1767658242888,-500.0,0.00013699,2]